bitfinex-derivatives/quotes_ETHF0:USTF0_20251031
["timestamp","ask_amount","ask_price","bid_price","bid_amount"]
[1761879079129,0.00192571,3819.5,3819.0,3.20975844]
[1761879079130,1.5829,3819.1,3819.0,3.20975844]
[1761879080221,10.0239,3819.1,3819.0,3.20975844]
[1761879081225,10.0239,3819.1,3819.0,0.00195844]
[1761879081425,0.6839,3818.3,3818.2,3.2078]
[1761879081621,0.0867,3818.4,3817.5,0.6581]
[1761879081622,1.5829,3817.9,3817.8,3.6599]
[1761879081824,1.5829,3817.9,3817.8,4.318]
[1761879082513,1.5829,3817.9,3817.8,4.73910485]
[1761879083229,1.1323,3817.9,3817.8,4.73910485]
[1761879083425,1.5829,3818.3,3818.2,0.4521]
[1761879084125,1.1323,3818.6,3818.5,1.1102]
[1761879085927,1.5829,3818.6,3818.5,0.4521]
[1761879086920,0.4484,3818.3,3818.2,3.6599]
[1761879087126,1.5829,3818.3,3818.2,3.2078]
[1761879087525,10.8789,3818.3,3818.2,3.2078]
[1761879087726,1.5829,3817.9,3817.8,3.21010485]
[1761879089518,9.296,3818.3,3818.2,0.4188]
[1761879089722,10.4283,3818.3,3818.2,1.529]
[1761879090224,9.7444,3818.3,3818.2,1.529]
[1761879090424,10.8789,3818.3,3817.8,4.12070485]
[1761879090629,0.6839,3818.2,3817.8,4.53950485]
[1761879090930,1.1323,3818.2,3818.1,1.1102]
[1761879091929,1.5829,3818.2,3818.1,0.4521]
[1761879092229,1.5829,3817.9,3817.8,4.32030485]
[1761879092626,1.5829,3817.9,3817.8,4.73910485]
[1761879093135,0.4484,3817.9,3817.8,4.73910485]
[1761879093634,1.1323,3817.9,3817.8,4.73910485]
[1761879093823,0.4484,3817.9,3817.8,4.73910485]
[1761879094023,0.6839,3818.2,3817.8,4.28700485]
[1761879094223,1.5829,3818.2,3818.1,0.4521]
[1761879094536,2.15683389,3818.2,3818.1,0.4521]
[1761879095031,1.5829,3818.0,3817.9,0.4521]
[1761879095233,2.15683389,3818.0,3817.9,1.1102]
[1761879095427,2.15683389,3818.0,3817.9,1.529]
[1761879096232,0.57393389,3818.0,3817.9,1.529]
[1761879097129,9.296,3818.3,3818.2,1.529]
[1761879097433,9.87118903,3818.3,3818.2,4.7368]
[1761879097939,0.57518903,3818.3,3818.2,4.7368]
[1761879099635,0.57518903,3818.3,3818.2,45.5368]
[1761879099829,9.279,3818.9,3818.8,1.1102]
[1761879100138,10.30357631,3818.9,3818.8,4.7368]
[1761879101331,9.85517631,3818.9,3818.8,4.7368]
[1761879101531,0.57617631,3818.9,3818.8,4.7368]
[1761879104431,0.57617631,3818.9,3818.8,45.5368]
[1761879104432,1.42707631,3818.9,3818.8,45.5368]
[1761879104635,2.06037631,3818.9,3818.8,45.5368]
[1761879105542,0.57617631,3818.9,3818.8,45.5368]
[1761879109630,0.6333,3819.4,3819.3,0.4222]
[1761879109829,1.02409154,3819.4,3819.3,4.6353]
[1761879111038,0.6583,3819.7,3819.6,1.4275]
[1761879111039,0.025,3819.7,3819.6,1.4275]
[1761879112233,0.02744635,3819.7,3819.6,1.89883]
[1761879113036,0.02744635,3819.7,3819.6,1.4275]
[1761879114343,0.02744635,3819.7,3819.6,42.2275]
[1761879115337,1.51164635,3819.7,3819.6,40.8]
[1761879115550,1.4842,3819.4,3819.3,4.2262]
[1761879115836,0.02744635,3819.7,3819.6,1.4275]
[1761879116032,1.51164635,3819.7,3819.6,1.4275]
[1761879116235,1.51164635,3819.7,3819.6,0.8313]
[1761879116938,1.4842,3819.4,3819.3,44.604]
[1761879117332,1.51164635,3819.7,3819.6,1.4275]
[1761879117539,1.4842,3819.4,3819.3,44.604]
[1761879117940,1.4842,3819.4,3819.3,44.0078]
[1761879118336,0.47654635,3819.7,3819.6,0.4222]
[1761879118546,0.87834635,3819.7,3819.6,0.4222]
[1761879118749,0.8509,3819.5,3819.4,1.0184]
[1761879118937,1.4842,3819.5,3819.4,1.0184]
[1761879119139,1.4842,3819.5,3819.4,1.4275]
[1761879119544,1.4842,3819.5,3819.4,0.8313]
[1761879119545,1.7442,3819.5,3819.4,0.8313]
[1761879119846,1.7442,3819.5,3819.4,0.4222]
[1761879120047,0.02744635,3819.7,3819.6,1.4275]
[1761879120048,1.10984635,3819.7,3819.6,1.4275]
[1761879120546,1.51164635,3819.7,3819.6,1.4275]
[1761879121749,0.4491,3819.4,3819.0,3.2078]
[1761879121943,1.4842,3819.1,3819.0,3.2078]
[1761879122344,1.4842,3819.1,3819.0,44.0078]
[1761879124445,1.4842,3819.1,3819.0,44.604]
[1761879125542,0.7091,3819.5,3819.4,0.8313]
[1761879125744,0.8509,3819.5,3819.4,1.4275]
[1761879125956,0.47654635,3819.7,3819.6,1.4275]
[1761879126148,1.10984635,3819.7,3819.6,1.4275]
[1761879126347,0.02744635,3819.7,3819.6,1.4275]
[1761879129145,0.02744635,3819.7,3819.6,42.2275]
[1761879129536,0.47654635,3819.7,3819.6,42.2275]
[1761879130746,0.02744635,3819.7,3819.6,42.2275]
[1761879131951,1.36174635,3819.7,3819.6,42.1816]
[1761879132152,1.5865,3819.5,3819.4,3.2078]
[1761879132756,1.5865,3819.5,3819.4,44.3959]
[1761879132954,1.5865,3819.5,3819.4,44.9462]
[1761879133157,1.5865,3819.5,3819.4,4.1462]
[1761879133357,1.5865,3819.5,3819.4,3.2078]
[1761879133652,2.1544944,3819.5,3819.0,3.2078]
[1761879133962,1.3343,3819.1,3819.0,4.5347]
[1761879134253,0.5509,3819.4,3819.3,1.3269]
[1761879134556,0.9516,3819.4,3819.3,1.3269]
[1761879134757,1.3343,3819.4,3819.3,1.3269]
[1761879135262,0.42814635,3819.7,3819.6,1.3269]
[1761879135558,0.99641756,3819.7,3819.6,4.5347]
[1761879135752,1.54731756,3819.7,3819.6,4.5347]
[1761879135957,1.93001756,3819.7,3819.6,4.5347]
[1761879136162,0.02744635,3819.7,3819.6,4.5347]
[1761879138058,1.33424635,3819.7,3819.6,4.5347]
[1761879138255,0.595792,3819.7,3819.1,3.2078]
[1761879138464,1.3068,3819.2,3819.1,3.2078]
[1761879139261,1.87511778,3819.2,3819.1,3.2078]
[1761879139961,0.5763,3819.2,3819.1,4.5172]
[1761879140263,10.5548,3819.3,3819.2,1.3094]
[1761879140463,10.5548,3819.3,3819.2,0.7459]
[1761879140666,10.5548,3819.3,3819.2,1.3094]
[1761879141052,9.248,3819.3,3819.2,1.3094]
[1761879141450,0.02744635,3819.7,3819.6,1.3094]
[1761879141650,0.59569127,3819.7,3819.6,1.3094]
[1761879141965,0.02744635,3819.7,3819.6,1.3094]
[1761879142367,0.96544635,3819.7,3819.6,1.3094]
[1761879142564,1.3068,3819.6,3819.5,3.2078]
[1761879143666,1.3068,3819.6,3819.5,3.5745]
[1761879143862,1.87518718,3819.6,3819.5,3.5745]
[1761879144068,1.87518718,3819.6,3819.5,3.2078]
[1761879144565,1.3068,3819.3,3819.2,0.5635]
[1761879144766,0.938,3819.1,3819.0,4.5172]
[1761879145164,1.3068,3819.1,3819.0,3.2078]
[1761879145662,1.3068,3819.1,3819.0,3.5745]
[1761879146261,1.3068,3819.1,3819.0,3.2078]
[1761879146460,1.3068,3819.1,3819.0,4.138]
[1761879146664,1.3068,3819.1,3819.0,3.2078]
[1761879146861,1.3068,3819.1,3819.0,4.138]
[1761879147061,1.3068,3819.1,3819.0,4.5172]
[1761879148171,0.7305,3819.1,3819.0,4.5172]
[1761879148373,1.3068,3819.1,3819.0,4.5172]
[1761879150265,0.3617,3819.1,3819.0,4.7071]
[1761879150468,9.255,3819.4,3819.3,1.3094]
[1761879150877,9.255,3819.4,3819.3,0.3667]
[1761879150878,11.13016174,3819.4,3819.3,0.3667]
[1761879151067,1.3068,3819.1,3819.0,4.5172]
[1761879151682,0.3617,3819.1,3819.0,4.7071]
[1761879152676,9.255,3819.4,3819.3,1.3094]
[1761879152885,0.02744635,3819.7,3819.6,1.3094]
[1761879153479,0.02744635,3819.7,3819.6,1.78074]
[1761879153779,0.02744635,3819.7,3819.6,1.3094]
[1761879153978,1.3068,3819.2,3819.1,0.9302]
[1761879154278,1.3068,3819.2,3819.1,0.3667]
[1761879154681,1.3068,3819.2,3819.1,0.9302]
[1761879154978,1.3068,3819.2,3819.0,3.2078]
[1761879154979,1.3068,3819.1,3819.0,3.2078]
[1761879155678,0.3617,3819.1,3819.0,4.7071]
[1761879156288,0.938,3819.1,3819.0,4.7071]
[1761879156482,1.3068,3819.1,3819.0,4.5172]
[1761879157181,0.938,3819.4,3819.3,0.3667]
[1761879157388,0.5683086,3819.4,3819.3,1.3094]
[1761879157987,9.243,3819.5,3819.4,1.3094]
[1761879158287,9.243,3819.5,3819.4,4.5172]
[1761879158493,0.02744635,3819.7,3819.6,1.3094]
[1761879159394,0.02744635,3819.7,3819.6,42.1094]
[1761879160592,0.02744635,3819.7,3819.6,44.08779637]
[1761879160788,0.02744635,3819.7,3819.6,42.1094]
[1761879162993,0.02744635,3819.7,3819.6,43.49752269]
[1761879163201,0.02744635,3819.7,3819.6,42.1094]
[1761879167506,1.2371,3821.0,3820.9,1.2485]
[1761879167707,1.80442082,3821.0,3820.9,1.2485]
[1761879168003,2.03182082,3821.0,3820.9,0.7077]
[1761879168404,2.03474616,3821.0,3820.9,1.25033896]
[1761879168708,0.95094616,3821.0,3820.9,1.25033896]
[1761879169005,0.00292534,3821.0,3820.9,4.45813896]
[1761879169193,0.00292534,3821.0,3820.9,4.92932896]
[1761879169393,0.00292534,3821.0,3820.9,4.45813896]
[1761879169599,0.00292534,3821.0,3820.9,4.92932896]
[1761879169898,0.00292534,3821.0,3820.9,45.72932896]
[1761879170300,0.00292534,3821.0,3820.9,45.25813896]
[1761879173904,0.00292534,3821.0,3820.9,54.49713896]
[1761879174299,10.4771,3822.1,3822.0,1.2485]
[1761879174895,9.24,3822.1,3822.0,1.4636]
[1761879175095,9.6207,3822.1,3822.0,1.4636]
[1761879175291,10.14609542,3822.1,3822.0,1.4636]
[1761879175706,9.62309542,3822.1,3822.0,1.4636]
[1761879176209,9.24239542,3822.1,3822.0,1.4636]
[1761879176602,0.00239542,3822.1,3822.0,1.4636]
[1761879177100,0.38309542,3822.1,3822.0,1.4636]
[1761879177307,0.38309542,3822.1,3821.7,4.4563]
[1761879177308,1.2371,3821.8,3821.7,4.4563]
[1761879178911,1.4645,3821.5,3821.4,0.9171]
[1761879179310,1.2371,3821.3,3821.2,3.2078]
[1761879180303,1.2371,3821.3,3821.2,3.5841]
[1761879180498,0.9037,3821.5,3821.4,0.3314]
[1761879180699,0.9037,3821.5,3821.4,0.7077]
[1761879180904,1.4645,3821.5,3821.4,0.7077]
[1761879181105,1.2371,3821.5,3821.4,1.2485]
[1761879181307,0.9037,3821.8,3821.7,1.2485]
[1761879181511,0.3807,3821.8,3821.7,1.2485]
[1761879181713,0.3807,3822.0,3821.9,0.7077]
[1761879182315,0.00239542,3822.1,3822.0,1.4636]
[1761879183314,1.23949542,3822.1,3822.0,1.2485]
[1761879187913,1.23949542,3822.1,3822.0,0.7077]
[1761879188315,1.8066337,3822.1,3822.0,1.2485]
[1761879188912,1.23949542,3822.1,3822.0,1.2485]
[1761879189913,1.80689165,3822.1,3822.0,0.3763]
[1761879190114,1.80689165,3822.1,3822.0,1.2485]
[1761879190312,0.00239542,3822.1,3822.0,1.4636]
[1761879191712,0.00239542,3822.1,3822.0,42.2636]
[1761879193417,0.00239542,3822.1,3822.0,43.98103196]
[1761879194615,3.2078,3822.6,3822.0,43.98103196]
[1761879194816,0.91370294,3823.4,3823.3,1.1396]
[1761879195010,0.4739,3824.1,3824.0,1.1396]
[1761879195011,0.8289,3824.1,3824.0,1.1396]
[1761879195208,0.8289,3824.1,3823.5,1.1396]
[1761879195209,0.355,3823.6,3823.5,1.1396]
[1761879195415,1.1572,3823.3,3823.2,1.1396]
[1761879195811,1.15972368,3823.3,3823.2,1.14223275]
[1761879196015,0.35752368,3823.3,3823.2,1.14223275]
[1761879196616,0.35752368,3823.3,3823.2,41.94223275]
[1761879197017,0.80192368,3823.3,3823.2,41.94223275]
[1761879197227,1.36886536,3823.3,3823.2,41.94223275]
[1761879197722,0.92446536,3823.3,3823.2,41.94223275]
[1761879198418,0.56946536,3823.3,3823.2,41.94223275]
[1761879198616,0.87366536,3823.3,3823.2,41.94223275]
[1761879198923,0.56946536,3823.3,3823.2,41.94223275]
[1761879199316,1.63866536,3823.3,3823.2,41.94223275]
[1761879199528,1.63866536,3823.3,3823.2,40.80263275]
[1761879200019,1.63871975,3823.3,3823.2,41.26883275]
[1761879200224,0.87371975,3823.3,3823.2,41.26883275]
[1761879201829,0.56951975,3823.3,3823.2,41.26883275]
[1761879202225,1.31811975,3823.3,3823.2,41.26883275]
[1761879202424,1.63871975,3823.3,3823.2,41.26883275]
[1761879203124,0.8116,3822.5,3822.0,3.674]
[1761879203329,4.277,3822.4,3822.3,0.2963]
[1761879203627,1.0692,3822.2,3822.1,40.8]
[1761879203830,1.63593699,3822.2,3822.1,40.8]
[1761879204122,1.63593699,3822.2,3822.1,41.26908639]
[1761879204326,1.63593699,3822.2,3822.1,40.80288639]
[1761879204528,1.63593699,3822.2,3822.1,41.26908639]
[1761879205321,1.63593699,3822.2,3822.1,0.00288639]
[1761879206930,1.63593699,3822.2,3822.1,0.29918639]
[1761879207729,1.63593699,3822.2,3822.1,0.00288639]
[1761879211434,1.63593699,3822.2,3822.1,0.29918639]
[1761879214833,1.63593699,3822.2,3822.1,1.06668639]
[1761879215238,1.0692,3822.2,3822.1,1.06668639]
[1761879216635,3.2078,3822.2,3822.1,1.06668639]
[1761879216827,0.00252368,3823.3,3822.9,0.2963]
[1761879216828,3.9564,3823.0,3822.9,0.2963]
[1761879217023,4.07914284,3823.0,3822.9,0.5976]
[1761879217226,4.52354284,3823.0,3822.9,0.5976]
[1761879217424,4.84414284,3823.0,3822.9,1.0638]
[1761879217623,0.6248,3822.6,3822.1,3.21068639]
[1761879217841,1.0692,3822.2,3822.1,0.00288639]
[1761879218043,1.0692,3822.2,3822.1,0.29918639]
[1761879218342,1.0692,3822.2,3822.1,1.06668639]
[1761879218733,1.0692,3822.2,3822.1,0.00288639]
[1761879219342,1.0692,3822.2,3822.1,0.29918639]
[1761879219840,1.0692,3822.2,3822.1,1.06668639]
[1761879222041,0.3042,3822.2,3822.1,1.06668639]
[1761879222251,4.2247,3822.5,3822.4,0.9924]
[1761879222436,4.79158839,3822.5,3822.4,0.9924]
[1761879223840,4.98578839,3822.5,3822.4,0.9924]
[1761879224044,1.0169,3822.2,3822.1,0.99528639]
[1761879226749,0.2962,3822.2,3822.1,0.99528639]
[1761879227042,0.7264,3822.2,3822.1,0.99528639]
[1761879227555,0.7264,3822.2,3822.1,2.10030406]
[1761879228242,0.1942,3822.5,3822.1,2.10030406]
[1761879228556,0.025,3824.7,3823.6,1.17715]
[1761879228758,0.4552,3824.7,3824.6,41.90501767]
[1761879229052,0.4552,3824.7,3824.6,42.84334758]
[1761879229254,0.4552,3824.7,3824.6,41.90501767]
[1761879229554,0.4552,3824.7,3824.6,40.8]
[1761879229748,0.45730145,3824.7,3824.6,40.8]
[1761879230257,0.45730145,3824.7,3824.6,41.27074]
[1761879231353,0.02710145,3824.7,3824.6,41.27074]
[1761879232156,0.17633803,3825.0,3824.9,0.4707]
[1761879232357,0.17633803,3825.0,3824.9,5.39382379]
[1761879232746,0.60653803,3825.0,3824.9,5.39382379]
[1761879233259,0.60964072,3825.0,3824.9,5.3966748]
[1761879233558,1.19634072,3825.0,3824.9,3.21065101]
[1761879235458,0.90584072,3825.0,3824.9,3.68135101]
[1761879235856,0.60964072,3825.0,3824.9,3.68135101]
[1761879236759,0.1942,3825.5,3825.3,0.47065]
[1761879236957,0.1942,3825.5,3825.4,4.92312379]
[1761879237658,0.19731769,3825.5,3825.4,4.92312379]
[1761879237961,0.78401769,3825.5,3825.4,4.92312379]
[1761879238157,0.78401769,3825.5,3825.4,3.2078]
[1761879238356,0.78401769,3825.5,3825.4,44.0078]
[1761879238662,0.62751769,3825.5,3825.4,44.0078]
[1761879238850,0.92371769,3825.5,3825.4,44.0078]
[1761879239050,0.62751769,3825.5,3825.4,44.47844]
[1761879239246,1.21421769,3825.5,3825.4,44.0078]
[1761879239444,0.92371769,3825.5,3825.4,44.47844]
[1761879239649,0.00311769,3825.5,3825.4,44.47844]
[1761879239852,0.00311769,3825.5,3825.4,44.0078]
[1761879239853,0.62751769,3825.5,3825.4,44.0078]
[1761879240052,0.92371769,3825.5,3825.4,44.0078]
[1761879240252,0.62751769,3825.5,3825.4,44.0078]
[1761879240857,0.43331769,3825.5,3825.4,44.0078]
[1761879241260,0.4302,3825.9,3825.8,0.47059]
[1761879241462,0.1942,3826.0,3825.8,4.92312379]
[1761879241662,0.4302,3825.9,3825.8,4.92312379]
[1761879241854,0.1942,3826.0,3825.9,0.47057]
[1761879242054,0.4302,3826.2,3825.9,0.47057]
[1761879242262,0.43244442,3826.2,3825.9,0.47057]
[1761879242662,0.4302,3826.1,3825.8,4.92312379]
[1761879243163,0.1942,3826.0,3825.8,4.92312379]
[1761879243355,0.4302,3825.9,3825.8,4.92312379]
[1761879247569,0.1942,3826.0,3825.9,0.47057]
[1761879247863,0.43244442,3826.2,3825.8,4.92312379]
[1761879248167,0.00224442,3826.2,3826.0,0.47055]
[1761879248767,0.00224442,3826.2,3826.1,40.8]
[1761879249168,0.4302,3826.6,3826.4,0.47051]
[1761879249467,0.4302,3827.2,3827.0,0.47043]
[1761879249660,0.4302,3827.5,3827.1,4.92312379]
[1761879250061,0.43342448,3827.5,3827.2,41.27041]
[1761879250267,0.43342448,3827.5,3827.4,0.47039]
[1761879250573,0.00322448,3827.5,3827.4,1.40439]
[1761879250864,0.00322448,3827.5,3827.4,42.20439]
[1761879251070,1.50562448,3827.5,3827.4,41.4064]
[1761879251464,1.50562448,3827.5,3827.4,40.8]
[1761879251667,1.3317,3827.2,3827.1,3.2078]
[1761879251864,0.6412,3827.2,3827.1,3.8142]
[1761879252061,0.17392448,3827.5,3827.4,0.6064]
[1761879252267,0.00322448,3827.5,3827.4,0.934]
[1761879253472,0.00322448,3827.5,3827.4,43.70378787]
[1761879255068,0.4523,3828.5,3828.4,0.2788]
[1761879255269,0.8612,3828.5,3828.4,3.2078]
[1761879255458,0.8612,3828.5,3828.4,3.4866]
[1761879255659,1.5024,3828.5,3828.4,3.2078]
[1761879255973,1.50544217,3828.5,3828.4,3.81717069]
[1761879256774,1.50544217,3828.5,3828.4,3.21077069]
[1761879258274,1.50544217,3828.5,3828.4,3.51697069]
[1761879258569,1.50544217,3828.5,3828.4,3.21077069]
[1761879260771,0.806,3828.5,3828.4,3.21077069]
[1761879261771,0.80885182,3828.5,3828.4,3.21077069]
[1761879262074,0.806,3828.0,3827.9,3.2078]
[1761879262268,0.806,3828.0,3827.9,3.796]
[1761879262580,0.806,3828.0,3827.9,4.1863]
[1761879262771,0.9163,3828.4,3828.3,0.3903]
[1761879262976,0.806,3828.4,3828.3,1.36146804]
[1761879263173,1.3358,3828.4,3828.3,0.00306804]
[1761879266176,1.3358,3828.4,3828.3,0.59126804]
[1761879266477,0.806,3828.4,3828.3,4.56926804]
[1761879266667,0.00285182,3828.5,3828.4,1.3584]
[1761879266869,0.38935182,3828.5,3828.4,1.3584]
[1761879267472,1.33865182,3828.5,3828.4,0.9785]
[1761879267669,1.3358,3828.4,3828.3,3.79906804]
[1761879267872,1.3358,3828.4,3828.3,4.18936804]
[1761879269178,0.806,3828.4,3828.3,4.18936804]
[1761879269772,0.806,3828.4,3828.3,4.56926804]
[1761879269975,0.38935182,3828.5,3828.4,1.3584]
[1761879273184,0.3865,3828.4,3828.3,3.21086804]
[1761879273383,1.3358,3828.4,3828.3,3.21086804]
[1761879273686,0.806,3828.4,3828.3,4.56926804]
[1761879275290,0.806,3828.4,3828.3,5.92101324]
[1761879276590,0.00285182,3828.5,3828.4,1.3584]
[1761879277094,1.3358,3828.4,3828.3,3.79906804]
[1761879277391,1.3358,3828.4,3828.3,4.18936804]
[1761879277582,0.806,3828.4,3828.3,4.18936804]
[1761879277782,0.806,3828.4,3828.3,4.56926804]
[1761879280082,0.3865,3828.4,3828.3,4.56926804]
[1761879280595,0.00285182,3828.5,3828.4,1.3584]
[1761879280800,0.00285182,3828.5,3828.4,2.7101452]
[1761879281394,1.30725182,3828.5,3828.3,3.21086804]
[1761879281591,1.3272,3828.4,3828.3,3.79766804]
[1761879282695,1.3272,3828.4,3828.3,0.00306804]
[1761879282696,4.535,3828.4,3828.3,0.00306804]
[1761879284401,0.8046,3828.4,3828.3,2.76461324]
[1761879284795,0.4093,3828.4,3828.3,2.76461324]
[1761879286304,1.34300323,3828.4,3828.3,2.76461324]
[1761879286501,0.4093,3828.4,3828.3,2.76461324]
[1761879287293,1.34300323,3828.4,3828.3,2.76461324]
[1761879287499,1.34300323,3828.4,3828.3,1.41286804]
[1761879287703,4.535,3828.4,3828.3,0.00306804]
[1761879288607,1.3272,3828.4,3828.3,0.00306804]
[1761879288807,10.5792,3828.4,3828.3,0.00306804]
[1761879290108,10.5792,3828.4,3828.3,0.58986804]
[1761879290407,10.5792,3828.4,3828.3,0.00306804]
[1761879292906,10.5792,3828.4,3828.3,0.58986804]
[1761879293519,10.5792,3828.4,3828.3,0.00306804]
[1761879294215,10.5792,3828.4,3828.3,0.58986804]
[1761879296220,11.51353821,3828.4,3828.3,0.58986804]
[1761879296721,0.8046,3828.4,3828.3,1.41286804]
[1761879296923,0.4093,3828.4,3828.3,1.41286804]
[1761879300524,0.80745182,3828.5,3828.4,1.4098]
[1761879301822,0.00285182,3828.5,3828.4,1.4098]
[1761879302521,0.80745182,3828.5,3828.4,1.4098]
[1761879303122,1.3272,3828.4,3828.3,0.58986804]
[1761879303523,1.3272,3828.4,3828.3,1.00656804]
[1761879304230,1.3272,3828.4,3828.3,1.41286804]
[1761879304231,0.8046,3828.4,3828.3,1.41286804]
[1761879306329,0.8046,3828.4,3828.3,0.00306804]
[1761879306330,1.3272,3828.4,3828.3,0.00306804]
[1761879306734,5.46933821,3828.4,3828.3,0.00306804]
[1761879306926,4.535,3828.4,3828.3,0.00306804]
[1761879307228,4.535,3828.4,3828.3,0.58986804]
[1761879308432,1.3272,3828.4,3828.3,1.00656804]
[1761879308730,1.73828275,3828.4,3828.3,1.41286804]
[1761879308932,10.96828275,3828.4,3828.3,1.41286804]
[1761879309128,11.49088275,3828.4,3828.3,1.41286804]
[1761879309527,11.49088275,3828.4,3828.3,1.00656804]
[1761879309729,10.5572,3828.4,3828.3,1.00656804]
[1761879309928,10.5572,3828.4,3828.3,0.00306804]
[1761879310324,10.96828275,3828.4,3828.3,1.00656804]
[1761879310524,10.96828275,3828.4,3828.3,1.41286804]
[1761879310734,0.00285182,3828.5,3828.4,1.3451]
[1761879310929,9.23285182,3828.5,3828.4,2.69714885]
[1761879315338,9.23285182,3828.5,3828.4,2.44645612]
[1761879316239,0.00285182,3828.5,3828.4,2.44645612]
[1761879316437,9.23185182,3828.5,3828.4,2.44645612]
[1761879316834,9.58275182,3828.5,3828.4,1.3451]
[1761879317031,9.58275182,3828.5,3828.4,2.44645612]
[1761879321636,0.3509,3829.1,3829.0,1.4585]
[1761879321840,10.16168275,3829.3,3829.2,1.2495]
[1761879321841,9.5789,3829.3,3829.2,1.2495]
[1761879322043,9.5789,3829.3,3829.2,2.35085612]
[1761879322634,9.58116554,3829.3,3829.2,2.35085612]
[1761879324342,9.58116554,3829.3,3829.2,4.4573]
[1761879324642,9.94356554,3829.3,3829.2,5.55865612]
[1761879325545,9.23026554,3829.3,3829.2,5.55865612]
[1761879326047,9.23026554,3829.3,3829.2,4.4573]
[1761879327734,0.00226554,3829.3,3829.2,5.1617827]
[1761879328545,0.025,3829.7,3829.6,1.2495]
[1761879328847,0.025,3829.7,3829.6,5.55865612]
[1761879329151,0.025,3829.7,3829.6,6.26151267]
[1761879329443,0.02817912,3829.7,3829.6,5.55865612]
[1761879329656,0.02817912,3829.7,3829.6,6.26151267]
[1761879329945,0.7352,3830.8,3830.7,0.3415]
[1761879330251,1.0976,3830.5,3830.4,0.8869]
[1761879330441,0.7133,3830.5,3830.4,0.8869]
[1761879331047,0.71532483,3830.5,3830.4,1.2495]
[1761879331245,0.00202483,3830.5,3830.4,1.2495]
[1761879331740,0.00202483,3830.5,3830.1,0.5454]
[1761879331935,1.0976,3830.2,3830.1,0.8869]
[1761879332135,9.9383,3830.2,3830.1,0.8869]
[1761879332549,10.3226,3830.2,3830.1,0.8869]
[1761879333651,1.0976,3829.9,3829.8,3.2078]
[1761879334149,1.0976,3829.9,3829.8,3.7532]
[1761879335148,1.0976,3829.9,3829.8,5.19605612]
[1761879336052,0.7133,3829.9,3829.8,5.19605612]
[1761879337451,1.0976,3829.9,3829.8,4.0947]
[1761879337844,1.0976,3829.9,3829.8,3.7532]
[1761879338043,0.7133,3829.6,3829.5,0.5505]
[1761879338256,0.7133,3829.6,3829.5,0.9131]
[1761879338640,0.7133,3829.6,3829.5,1.4585]
[1761879339248,1.0976,3829.6,3829.5,1.4585]
[1761879339451,1.0976,3829.6,3829.5,0.5454]
[1761879340752,0.9437,3829.5,3829.4,3.2078]
[1761879340956,0.9437,3829.5,3829.4,3.712]
[1761879341654,0.9437,3829.5,3829.4,4.0804]
[1761879341955,0.6473,3829.5,3829.4,4.4183]
[1761879342350,0.5928,3830.2,3830.1,0.8726]
[1761879342644,9.8158,3830.2,3830.1,2.31185612]
[1761879342852,0.00202483,3830.5,3830.4,1.2105]
[1761879343047,0.89122483,3830.5,3830.4,0.8726]
[1761879343856,0.59482483,3830.5,3830.4,0.8726]
[1761879344056,0.59482483,3830.5,3830.4,1.2105]
[1761879344455,0.8892,3830.1,3829.5,3.4168]
[1761879344754,0.2964,3829.6,3829.5,4.1231]
[1761879345157,9.8158,3830.0,3829.9,0.8726]
[1761879345356,9.223,3830.0,3829.9,1.2105]
[1761879345861,9.223,3830.0,3829.9,2.31185612]
[1761879346060,9.5194,3830.0,3829.9,2.31185612]
[1761879347161,9.8158,3830.0,3829.9,2.31185612]
[1761879348657,9.8158,3830.0,3829.9,1.2105]
[1761879349554,10.1122,3830.0,3829.9,0.5042]
[1761879350562,10.1122,3830.0,3829.9,0.8726]
[1761879351159,9.223,3830.0,3829.9,5.51965612]
[1761879352962,9.5194,3830.0,3829.9,5.51965612]
[1761879354255,9.8158,3830.0,3829.9,5.51965612]
[1761879354457,10.1122,3830.0,3829.9,4.0804]
[1761879354661,10.1122,3830.0,3829.9,3.2078]
[1761879358466,0.8892,3829.6,3829.5,3.2078]
[1761879358664,10.1092,3829.6,3829.5,3.712]
[1761879358867,10.1092,3829.6,3829.5,3.921]
[1761879359469,10.1092,3829.6,3829.5,4.2894]
[1761879359873,9.8128,3829.6,3829.5,4.6273]
[1761879360572,9.22,3829.6,3829.5,4.6273]
[1761879363869,10.1092,3829.6,3829.5,0.5042]
[1761879364066,10.1092,3829.6,3829.5,1.60555612]
[1761879364460,10.1092,3829.6,3829.5,2.18295612]
[1761879367074,9.8128,3829.6,3829.5,2.18295612]
[1761879367274,9.8128,3829.6,3829.5,2.52085612]
[1761879368278,9.22,3829.6,3829.5,5.72865612]
[1761879368572,9.5164,3829.6,3829.5,5.72865612]
[1761879370073,0.5928,3830.2,3830.1,1.2105]
[1761879370273,10.1072,3830.2,3830.1,0.5042]
[1761879373174,9.8108,3830.2,3830.1,1.1761]
[1761879375581,10.0084,3830.2,3830.1,0.8726]
[1761879376683,10.0084,3830.2,3830.1,0.5042]
[1761879377284,10.0084,3830.2,3830.1,0.799]
[1761879378277,9.8108,3830.2,3830.1,1.0912]
[1761879379178,9.99,3830.2,3830.1,0.799]
[1761879379380,9.99,3830.2,3830.1,0.5042]
[1761879379883,9.218,3830.2,3830.0,0.4124]
[1761879380084,0.3584,3830.1,3830.0,0.4124]
[1761879380285,0.3584,3830.1,3830.0,0.591]
[1761879380482,0.3584,3830.1,3830.0,0.8858]
[1761879381286,0.3584,3830.1,3830.0,1.178]
[1761879382385,9.218,3830.2,3830.1,0.9994]
[1761879382583,9.3972,3830.2,3830.1,0.9994]
[1761879382982,9.5764,3830.2,3830.1,0.9994]
[1761879385191,9.7556,3830.2,3830.1,0.9994]
[1761879385483,9.7556,3830.2,3830.1,0.4124]
[1761879387389,9.5764,3830.2,3830.1,0.7072]
[1761879387578,9.5764,3830.2,3830.1,0.9994]
[1761879389084,9.7556,3830.2,3830.1,0.9994]